bitfinex-derivatives/quotes_SOLF0:USTF0_20260220
["timestamp","ask_amount","ask_price","bid_price","bid_amount"]
[1771581117691,3.04700819,84.24,84.209,5.2719737]
[1771581117890,5.79073695,84.249,84.209,5.2719737]
[1771581118293,3.04700819,84.25,84.209,5.2719737]
[1771581118694,3.04700819,84.25,84.222,10.6908]
[1771581119496,3.04700819,84.25,84.2,3.04700819]
[1771581119497,3.04700819,84.25,84.214,5.2719737]
[1771581120995,3.04700819,84.25,84.204,10.693]
[1771581120996,5.79073695,84.249,84.204,10.693]
[1771581121192,3.04700819,84.23,84.2,5.2719737]
[1771581121393,8.83774514,84.22,84.181,5.2719737]
[1771581121598,3.04700819,84.21,84.181,5.2719737]
[1771581121897,3.04763767,84.21,84.181,5.2719737]
[1771581122393,5.79073695,84.219,84.181,5.2719737]
[1771581122394,3.04763767,84.2,84.181,5.2719737]
[1771581122596,3.04763767,84.19,84.163,10.6982]
[1771581122997,3.04763767,84.2,84.164,5.2719737]
[1771581124693,3.04763767,84.2,84.166,5.73288438]
[1771581125092,3.04763767,84.21,84.166,5.73288438]
[1771581126304,3.04763767,84.2,84.166,5.73288438]
[1771581126700,3.04763767,84.2,84.168,5.73288438]
[1771581133910,3.04763767,84.21,84.168,5.73288438]
[1771581134606,3.04763767,84.2,84.168,5.73288438]
[1771581137607,3.04763767,84.2,84.152,10.6997]
[1771581137811,3.04763767,84.19,84.157,5.61314598]
[1771581140814,3.04763767,84.18,84.157,5.61314598]
[1771581141216,3.04763767,84.18,84.143,5.61314598]
[1771581141903,3.04763767,84.18,84.144,10.7007]
[1771581142213,3.04763767,84.18,84.145,5.61314598]
[1771581143013,3.04763767,84.18,84.148,10.7002]
[1771581145714,3.04763767,84.18,84.149,5.61314598]
[1771581145912,5.41558448,84.186,84.149,5.61314598]
[1771581152518,5.41558448,84.186,84.15,10.6999]
[1771581154117,5.41558448,84.169,84.14,10.7011]
[1771581154421,5.41558448,84.169,84.133,5.61314598]
[1771581154422,3.04763767,84.16,84.133,5.61314598]
[1771581154613,3.04763767,84.16,84.127,31.11671353]
[1771581155422,3.04763767,84.16,84.129,10.7026]
[1771581159519,3.04763767,84.16,84.129,16.33400363]
[1771581159720,3.04763767,84.16,84.13,5.63140363]
[1771581159924,5.41558448,84.169,84.13,5.63140363]
[1771581160514,3.04763767,84.17,84.133,5.63140363]
[1771581161421,5.30064688,84.18,84.142,5.63140363]
[1771581161422,8.57235871,84.177,84.142,5.63140363]
[1771581161622,8.34828455,84.19,84.142,5.63140363]
[1771581162823,8.34828455,84.19,84.144,5.63140363]
[1771581163819,8.34828455,84.19,84.148,5.63140363]
[1771581167019,5.30064688,84.205,84.167,5.63140363]
[1771581167215,3.04763767,84.2,84.167,5.63140363]
[1771581167416,5.30064688,84.198,84.167,5.63140363]
[1771581167627,3.04763767,84.19,84.151,5.63140363]
[1771581168923,3.04763767,84.19,84.158,10.6989]
[1771581170317,5.30064688,84.198,84.158,10.6989]
[1771581170521,5.30064688,84.196,84.158,10.6989]
[1771581170725,8.59220099,84.195,84.158,10.6989]
[1771581170924,8.59220099,84.194,84.158,10.6989]
[1771581171128,5.30064688,84.196,84.158,10.6989]
[1771581171428,8.59307089,84.195,84.158,10.6989]
[1771581171726,8.59307089,84.194,84.158,10.6989]
[1771581171928,5.30064688,84.195,84.151,5.63140363]
[1771581172223,5.30064688,84.193,84.151,5.63140363]
[1771581173730,5.30064688,84.193,84.14,3.04763767]
[1771581173731,5.30064688,84.193,84.155,5.63140363]
[1771581176825,3.04763767,84.19,84.155,5.63140363]
[1771581177931,5.30064688,84.189,84.155,5.63140363]
[1771581178129,3.04763767,84.18,84.142,5.63140363]
[1771581182027,3.04952438,84.18,84.142,5.63140363]
[1771581184729,5.4244174,84.199,84.151,5.62582212]
[1771581184934,11.58104456,84.198,84.151,5.62582212]
[1771581185134,11.58104456,84.197,84.151,5.62582212]
[1771581185338,11.58104456,84.196,84.155,5.62582212]
[1771581185635,11.58104456,84.195,84.155,5.62582212]
[1771581185824,2.9697899,84.194,84.155,5.62582212]
[1771581186024,2.9697899,84.193,84.159,5.62582212]
[1771581186236,2.96967983,84.192,84.159,5.62582212]
[1771581186432,5.4244174,84.199,84.159,5.62582212]
[1771581186734,11.58589806,84.198,84.159,5.62582212]
[1771581186933,11.58589806,84.197,84.161,5.62582212]
[1771581187132,2.96967718,84.196,84.161,5.62582212]
[1771581187432,2.96967718,84.195,84.161,5.62582212]
[1771581187633,2.96967718,84.194,84.161,5.62582212]
[1771581187830,2.96967718,84.193,84.161,5.62582212]
[1771581188031,5.4244174,84.199,84.161,5.62582212]
[1771581188228,11.58552133,84.198,84.161,5.62582212]
[1771581188428,11.58552133,84.197,84.161,5.62582212]
[1771581188725,2.96967732,84.196,84.164,10.6981]
[1771581188931,2.96967732,84.195,84.164,10.6981]
[1771581189125,2.96967732,84.194,84.164,10.6981]
[1771581189327,2.96967732,84.193,84.164,10.6981]
[1771581189536,5.4244174,84.199,84.164,16.09236386]
[1771581189736,11.58264339,84.198,84.164,16.09236386]
[1771581189936,11.58264339,84.197,84.164,16.09236386]
[1771581190131,2.96968033,84.196,84.165,5.39426386]
[1771581190432,2.96968033,84.195,84.167,5.39426386]
[1771581190634,2.96968033,84.194,84.167,5.39426386]
[1771581190832,5.4244174,84.199,84.167,5.39426386]
[1771581191037,11.5826916,84.198,84.167,5.39426386]
[1771581191239,2.96967486,84.197,84.167,5.39426386]
[1771581191438,2.96967486,84.196,84.167,5.39426386]
[1771581191638,5.4244174,84.199,84.167,5.39426386]
[1771581191942,2.96961776,84.198,84.167,5.39426386]
[1771581192238,2.96961776,84.197,84.167,5.39426386]
[1771581192437,2.96961776,84.196,84.167,5.39426386]
[1771581192639,5.4244174,84.199,84.167,5.39426386]
[1771581192835,2.96961854,84.198,84.167,5.39426386]
[1771581193034,2.96961854,84.197,84.167,5.39426386]
[1771581193237,2.96961854,84.196,84.167,5.39426386]
[1771581193444,5.4244174,84.199,84.167,5.39426386]
[1771581193743,2.9696183,84.198,84.167,5.39426386]
[1771581193943,2.9696183,84.197,84.167,5.39426386]
[1771581194143,2.9696183,84.196,84.167,5.39426386]
[1771581194344,5.4244174,84.199,84.167,5.39426386]
[1771581194546,2.9696183,84.198,84.167,5.39426386]
[1771581194741,5.4244174,84.199,84.167,5.39426386]
[1771581194742,2.9696183,84.197,84.167,5.39426386]
[1771581194950,2.9696183,84.196,84.167,5.39426386]
[1771581195158,5.4244174,84.199,84.167,5.39426386]
[1771581195346,2.9696183,84.198,84.167,5.39426386]
[1771581195541,2.9696183,84.197,84.167,5.39426386]
[1771581195748,8.82500748,84.21,84.171,5.39426386]
[1771581196046,11.57823666,84.209,84.171,5.39426386]
[1771581196249,11.57823666,84.208,84.173,5.39426386]
[1771581196448,11.57823666,84.207,84.173,5.39426386]
[1771581196749,11.57823666,84.206,84.173,5.39426386]
[1771581196948,11.57823666,84.205,84.173,5.39426386]
[1771581197148,2.96956077,84.204,84.173,5.39426386]
[1771581197350,2.96956077,84.203,84.173,5.39426386]
[1771581197548,2.96956077,84.202,84.173,5.39426386]
[1771581197750,2.96956077,84.201,84.173,5.39426386]
[1771581198049,8.82500748,84.21,84.173,5.39426386]
[1771581198243,3.04952438,84.23,84.181,5.36267798]
[1771581199648,3.04952438,84.23,84.191,10.6947]
[1771581199851,3.04952438,84.23,84.192,5.39426386]
[1771581200046,8.82500748,84.24,84.192,5.39426386]
[1771581201553,5.7754831,84.239,84.192,5.39426386]
[1771581201753,5.7754831,84.229,84.196,5.36477272]
[1771581202259,5.7754831,84.239,84.196,5.36477272]
[1771581202451,3.04952438,84.23,84.196,5.36477272]
[1771581205553,5.7754831,84.219,84.185,5.02449398]
[1771581205956,3.04952438,84.21,84.185,5.02449398]
[1771581208357,5.7754831,84.209,84.174,4.92702055]
[1771581209158,3.04952438,84.2,84.174,4.92702055]
[1771581210555,5.7754831,84.209,84.174,4.92702055]
[1771581210967,5.7754831,84.199,84.161,4.93257392]
[1771581211264,3.04952438,84.19,84.161,4.93257392]
[1771581213155,3.04952438,84.19,84.151,4.9422973]
[1771581213561,3.04952438,84.19,84.152,10.6996]
[1771581213762,3.04952438,84.18,84.152,10.6996]
[1771581216768,3.04952438,84.18,84.152,15.65478264]
[1771581217166,8.82500748,84.19,84.152,15.65478264]
[1771581218460,5.29642417,84.189,84.153,5.03117332]
[1771581219467,3.04952438,84.18,84.152,5.0339866]
[1771581220574,5.29642417,84.189,84.152,5.0339866]
[1771581224978,5.29642417,84.189,84.153,10.6996]
[1771581226684,5.29642417,84.189,84.153,15.74651079]
[1771581228182,5.29642417,84.189,84.155,15.87636146]
[1771581229888,5.29642417,84.189,84.155,5.17716146]
[1771581232183,8.34594855,84.18,84.143,5.18981371]
[1771581232490,5.29642417,84.179,84.143,5.18981371]
[1771581239401,5.29642417,84.179,84.145,5.20014193]
[1771581240805,5.29642417,84.179,84.147,5.19192586]
[1771581241704,5.29642417,84.179,84.149,5.19660605]
[1771581242097,5.29642417,84.179,84.142,10.7009]
[1771581242901,5.29642417,84.179,84.131,5.20038925]
[1771581243700,5.29642417,84.179,84.14,10.7012]
[1771581244003,8.53759307,84.192,84.14,10.7012]
[1771581244004,8.78106887,84.17,84.14,10.7012]
[1771581245704,5.73072534,84.17,84.14,10.7012]
[1771581245905,5.73072534,84.17,84.147,10.7003]
[1771581247306,2.534e-05,84.17,84.147,10.7003]
[1771581247997,2.534e-05,84.17,84.154,10.6994]
[1771581248201,3.05034353,84.18,84.154,10.6994]
[1771581248614,10.693,84.205,84.154,10.6994]
[1771581248913,3.05034353,84.18,84.154,10.6994]
[1771581249312,3.05034353,84.18,84.148,5.88019532]
[1771581253218,8.57008053,84.179,84.148,5.88019532]
[1771581253417,3.05034353,84.18,84.148,5.88019532]
[1771581253615,8.57015927,84.179,84.148,5.88019532]
[1771581253816,3.05034353,84.18,84.148,5.88019532]
[1771581254017,8.57015927,84.179,84.148,5.88019532]
[1771581254221,8.57327905,84.178,84.148,5.88019532]
[1771581254423,3.05034353,84.18,84.148,5.88019532]
[1771581254720,8.57334189,84.179,84.148,5.88019532]
[1771581254916,8.57334189,84.178,84.148,5.88019532]
[1771581255218,8.57709922,84.177,84.148,5.88019532]
[1771581255519,8.57709922,84.176,84.148,5.88019532]
[1771581255719,3.05034353,84.18,84.148,5.88019532]
[1771581255920,8.57715115,84.179,84.148,5.88019532]
[1771581256121,8.57715115,84.178,84.148,5.88019532]
[1771581256321,8.57715115,84.177,84.148,5.88019532]
[1771581256521,8.57715115,84.176,84.148,5.88019532]
[1771581256721,8.57715115,84.175,84.148,5.88019532]
[1771581256925,3.05034353,84.18,84.148,5.88019532]
[1771581257223,8.58049009,84.179,84.148,5.88019532]
[1771581257422,8.58049009,84.178,84.148,5.88019532]
[1771581257617,8.58049009,84.177,84.148,5.88019532]
[1771581257818,8.58049009,84.176,84.148,5.88019532]
[1771581258016,8.58049009,84.175,84.148,5.88019532]
[1771581258320,5.54410986,84.179,84.148,5.88019532]
[1771581258520,8.58122178,84.178,84.148,5.88019532]
[1771581258820,8.58122178,84.177,84.148,5.88019532]
[1771581259011,8.58122178,84.176,84.148,5.88019532]
[1771581259213,8.58122178,84.175,84.148,5.88019532]
[1771581259419,5.54410986,84.179,84.148,5.88019532]
[1771581259619,8.58153848,84.178,84.148,5.88019532]
[1771581259817,8.58153848,84.177,84.148,5.88019532]
[1771581260127,8.58153848,84.176,84.148,5.88019532]
[1771581260425,8.58153848,84.175,84.148,5.88019532]
[1771581260621,5.54410986,84.179,84.148,5.88019532]
[1771581260825,8.5798991,84.178,84.148,5.88019532]
[1771581261031,5.54410986,84.176,84.137,5.88019532]
[1771581261326,3.05034353,84.17,84.137,5.88019532]
[1771581261524,5.54410986,84.174,84.137,5.88019532]
[1771581261724,8.57932412,84.173,84.137,5.88019532]
[1771581262028,8.57932412,84.172,84.137,5.88019532]
[1771581262227,5.54410986,84.17,84.139,5.88019532]
[1771581262429,5.54410986,84.179,84.139,5.88019532]
[1771581262724,5.54410986,84.189,84.149,5.88019532]
[1771581262928,8.58054182,84.188,84.149,5.88019532]
[1771581263227,14.12465168,84.187,84.149,5.88019532]
[1771581263428,8.58054182,84.186,84.149,5.88019532]
[1771581263628,8.58054182,84.185,84.149,5.88019532]
[1771581263829,8.58054182,84.184,84.152,16.57979532]
[1771581264129,8.58054182,84.183,84.153,5.88019532]
[1771581264331,8.58054182,84.182,84.153,5.88019532]
[1771581264629,5.54410986,84.187,84.153,5.88019532]
[1771581264824,8.58202078,84.186,84.153,5.88019532]
[1771581265024,8.58202078,84.185,84.153,5.88019532]
[1771581265225,8.58202078,84.184,84.153,5.88019532]
[1771581265425,8.58202078,84.183,84.153,5.88019532]
[1771581265729,8.58202078,84.182,84.153,5.88019532]
[1771581266028,5.54410986,84.187,84.153,5.88019532]
[1771581266220,8.58224021,84.186,84.153,5.88019532]
[1771581266422,8.58224021,84.185,84.153,5.88019532]
[1771581266630,5.54410986,84.187,84.14,3.05034353]
[1771581266631,8.58224021,84.184,84.156,5.88019532]
[1771581266829,8.58224021,84.183,84.156,5.88019532]
[1771581267029,8.58224021,84.182,84.156,5.88019532]
[1771581267232,5.54410986,84.187,84.156,5.88019532]
[1771581267427,8.58272403,84.186,84.156,5.88019532]
[1771581267622,8.58272403,84.185,84.156,5.88019532]
[1771581267829,5.54410986,84.187,84.157,10.699]
[1771581268029,8.58334764,84.186,84.157,10.699]
[1771581268230,8.58334764,84.185,84.157,10.699]
[1771581268432,5.54410986,84.187,84.157,10.699]
[1771581268633,8.58334978,84.186,84.157,10.699]
[1771581268833,8.58334978,84.185,84.156,5.88019532]
[1771581269034,5.54410986,84.187,84.156,5.88019532]
[1771581269230,8.58334978,84.186,84.156,5.88019532]
[1771581269432,3.05034353,84.19,84.156,5.88019532]
[1771581269433,14.12745964,84.185,84.156,5.88019532]
[1771581269634,5.54410986,84.185,84.156,5.88019532]
[1771581272643,11.55129241,84.184,84.156,5.88019532]
[1771581272841,5.54410986,84.195,84.159,5.88019532]
[1771581273035,8.58139658,84.194,84.159,5.88019532]
[1771581273231,8.58139658,84.193,84.161,5.88019532]
[1771581273435,3.05034353,84.21,84.161,5.88019532]
[1771581273637,8.58086242,84.209,84.161,5.88019532]
[1771581273838,14.12497228,84.208,84.161,5.88019532]
[1771581274037,5.54410986,84.206,84.161,5.88019532]
[1771581274240,14.12497228,84.205,84.161,5.88019532]
[1771581274542,8.58086242,84.204,84.161,5.88019532]
[1771581274840,8.58086242,84.203,84.168,5.88019532]
[1771581275034,8.58086242,84.202,84.168,5.88019532]
[1771581275234,8.58086242,84.201,84.168,5.88019532]
[1771581275545,8.58086242,84.2,84.168,5.88019532]
[1771581275842,5.54410986,84.205,84.168,5.88019532]
[1771581276043,8.57409147,84.204,84.168,5.88019532]
[1771581276338,8.57409147,84.203,84.168,5.88019532]
[1771581276541,8.57409147,84.202,84.168,5.88019532]
[1771581276740,3.05034353,84.2,84.168,5.88019532]
[1771581278245,3.05034353,84.2,84.113,35.66]
[1771581278246,3.05034353,84.21,84.172,5.43200744]
[1771581278442,8.56892214,84.209,84.172,5.43200744]
[1771581278644,3.05034353,84.21,84.172,5.43200744]
[1771581278841,8.56898495,84.209,84.172,5.43200744]
[1771581279043,3.05034353,84.21,84.172,5.43200744]
[1771581279639,3.05034353,84.21,84.18,10.6961]
[1771581280345,5.79558153,84.209,84.172,5.43200744]
[1771581282041,5.79558153,84.199,84.163,5.43200744]
[1771581283841,5.79558153,84.199,84.165,5.43200744]
[1771581287948,5.79558153,84.199,84.159,10.6988]
[1771581288446,8.84592506,84.19,84.159,10.6988]
[1771581289148,5.79558153,84.189,84.159,10.6988]
[1771581294253,5.79558153,84.189,84.155,5.43200744]
[1771581305561,5.76355175,84.227,84.181,5.76068393]
[1771581305762,5.76355175,84.227,84.139,21.83723822]
[1771581305763,5.76355175,84.24,84.201,5.76068393]
[1771581305960,8.81265628,84.24,84.201,5.76068393]
[1771581306154,8.81265628,84.24,84.191,10.6947]
[1771581306155,5.76355175,84.239,84.191,10.6947]
[1771581306355,3.04910453,84.21,84.179,5.76068393]
[1771581308062,5.88969658,84.209,84.179,5.76068393]
[1771581308466,3.04910453,84.2,84.172,10.697]
[1771581308666,5.88969658,84.209,84.173,6.00097256]
[1771581312472,5.88969658,84.209,84.177,6.00097256]
[1771581317872,5.88969658,84.199,84.163,6.00097256]
[1771581325389,3.04910453,84.19,84.163,6.00097256]
[1771581327186,5.88969658,84.199,84.163,6.00097256]
[1771581335193,5.88969658,84.189,84.153,6.00097256]
[1771581337496,5.9879298,84.179,84.143,5.84814622]
[1771581341893,5.9879298,84.188,84.143,5.84814622]
[1771581343198,5.9879298,84.188,84.147,5.84814622]
[1771581349901,5.9879298,84.197,84.15,3.04910453]
[1771581350305,5.9879298,84.197,84.151,5.84814622]
[1771581351903,5.9879298,84.197,84.152,5.84814622]
[1771581355706,5.9879298,84.195,84.154,5.84814622]
[1771581355908,8.55330899,84.194,84.154,5.84814622]
[1771581356108,8.55330899,84.193,84.154,5.84814622]
[1771581356310,8.55330899,84.192,84.154,5.84814622]
[1771581356510,8.55330899,84.191,84.154,5.84814622]
[1771581356706,8.55330899,84.19,84.154,5.84814622]
[1771581357014,8.55330899,84.189,84.154,5.84814622]
[1771581357215,5.9879298,84.195,84.154,5.84814622]
[1771581357416,8.5462936,84.194,84.154,5.84814622]
[1771581357714,8.5462936,84.193,84.154,5.84814622]
[1771581357911,8.5462936,84.192,84.154,5.84814622]
[1771581358112,8.5462936,84.191,84.154,5.84814622]
[1771581358411,8.5462936,84.19,84.154,5.84814622]
[1771581358611,8.5462936,84.189,84.154,5.84814622]
[1771581358815,5.9879298,84.195,84.154,5.84814622]
[1771581359016,5.9879298,84.193,84.154,5.84814622]
[1771581359215,5.9879298,84.191,84.154,5.84814622]
[1771581359514,14.5309535,84.19,84.154,5.84814622]
[1771581359714,14.5309535,84.189,84.154,5.84814622]
[1771581359916,5.9879298,84.189,84.154,5.84814622]
[1771581360115,8.54400152,84.188,84.154,5.84814622]
[1771581360415,5.9879298,84.189,84.154,5.84814622]
[1771581360615,3.04910453,84.2,84.154,5.84814622]
[1771581360616,14.52951865,84.188,84.154,5.84814622]
[1771581360914,5.9879298,84.188,84.154,5.84814622]
[1771581362215,8.54669893,84.187,84.154,5.84814622]
[1771581362418,5.9879298,84.188,84.154,5.84814622]
[1771581363116,8.54162841,84.187,84.154,5.84814622]
[1771581363316,5.9879298,84.188,84.154,5.84814622]
[1771581363514,8.54164833,84.187,84.154,5.84814622]
[1771581363714,5.9879298,84.188,84.154,5.84814622]
[1771581363915,8.54175066,84.187,84.154,5.84814622]
[1771581364215,5.9879298,84.188,84.154,5.84814622]
[1771581364405,8.54757975,84.187,84.154,5.84814622]
[1771581364606,5.9879298,84.188,84.154,5.84814622]
[1771581364808,8.54930079,84.187,84.154,5.84814622]
[1771581365015,5.9879298,84.188,84.154,5.84814622]
[1771581365216,8.55017588,84.187,84.154,5.84814622]
[1771581365517,8.55017588,84.186,84.154,5.84814622]
[1771581365717,5.9879298,84.188,84.154,5.84814622]
[1771581365913,8.55107988,84.187,84.154,5.84814622]
[1771581366114,8.55107988,84.186,84.154,5.84814622]
[1771581366318,5.9879298,84.188,84.154,5.84814622]
[1771581366519,8.55056597,84.187,84.154,5.84814622]
[1771581366816,8.55056597,84.186,84.154,5.84814622]
[1771581367016,5.9879298,84.188,84.154,5.84814622]
[1771581367217,8.55253689,84.187,84.154,5.84814622]
[1771581367417,8.55253689,84.186,84.154,5.84814622]
[1771581367618,8.55253689,84.185,84.154,5.84814622]
[1771581367819,5.9879298,84.188,84.154,5.84814622]
[1771581368019,8.55340318,84.187,84.154,5.84814622]
[1771581368214,8.55340318,84.186,84.154,5.84814622]
[1771581368416,8.55340318,84.185,84.154,5.84814622]
[1771581368616,8.55340318,84.184,84.154,5.84814622]
[1771581368817,5.9879298,84.188,84.154,5.84814622]
[1771581369016,5.6605232,84.186,84.154,5.84814622]
[1771581369218,8.56084398,84.185,84.154,5.84814622]
[1771581369418,8.56084398,84.184,84.154,5.84814622]
[1771581369619,5.6605232,84.186,84.154,5.84814622]
[1771581369819,8.56214876,84.185,84.154,5.84814622]
[1771581370018,8.56214876,84.184,84.154,5.84814622]
[1771581370219,8.56214876,84.183,84.154,5.84814622]
[1771581370419,5.6605232,84.186,84.154,5.84814622]
[1771581370619,8.56164706,84.185,84.154,5.84814622]
[1771581370822,8.56164706,84.184,84.154,5.84814622]
[1771581371020,8.56164706,84.183,84.154,5.84814622]
[1771581371222,5.6605232,84.186,84.154,5.84814622]
[1771581371419,8.562127,84.185,84.156,10.6991]
[1771581371619,8.562127,84.184,84.156,10.6991]
[1771581371820,8.562127,84.183,84.156,10.6991]
[1771581372023,5.6605232,84.186,84.156,16.33652175]
[1771581372221,8.56247968,84.185,84.156,16.33652175]
[1771581372422,8.56247968,84.184,84.156,16.33652175]
[1771581372623,8.56247968,84.183,84.156,16.33652175]
[1771581372821,5.6605232,84.186,84.156,16.33652175]
[1771581373020,8.55387887,84.185,84.156,16.33652175]
[1771581373318,8.55387887,84.184,84.157,5.63742175]
[1771581373521,8.55387887,84.183,84.157,5.63742175]
[1771581373715,5.6605232,84.189,84.157,5.63742175]
[1771581373921,8.55469446,84.188,84.157,5.63742175]
[1771581374119,8.55469446,84.187,84.157,5.63742175]
[1771581374319,8.55469446,84.186,84.157,5.63742175]
[1771581374522,8.55469446,84.185,84.158,10.6989]
[1771581374725,8.55469446,84.184,84.158,10.6989]
[1771581375027,8.55469446,84.183,84.158,10.6989]
[1771581375323,8.55469446,84.182,84.158,10.6989]
[1771581375524,5.6605232,84.189,84.158,10.6989]
[1771581375723,5.6605232,84.187,84.158,10.6989]
[1771581375921,5.6605232,84.185,84.158,10.6989]
[1771581376226,8.56029793,84.184,84.158,10.6989]
[1771581376419,8.56029793,84.183,84.158,10.6989]
[1771581376619,8.56029793,84.182,84.158,10.6989]
[1771581376820,5.6605232,84.185,84.158,10.6989]
[1771581377123,1.21e-05,84.218,84.181,2.96923377]
[1771581377322,5.6605232,84.22,84.181,2.96923377]
[1771581377524,5.6605232,84.22,84.186,10.6953]
[1771581377722,5.6605232,84.234,84.191,2.97711641]
[1771581377921,5.6605232,84.234,84.201,2.97711641]
[1771581378116,3.04901784,84.25,84.201,2.97711641]
[1771581378117,5.6605232,84.249,84.201,2.97711641]
[1771581378724,5.6605232,84.249,84.204,2.98359126]
[1771581379127,5.6605232,84.249,84.211,3.41440843]
[1771581380823,5.6605232,84.269,84.221,3.42856707]
[1771581381024,8.70954104,84.26,84.221,3.42856707]
[1771581381220,5.6605232,84.26,84.221,3.42856707]
[1771581382025,5.6605232,84.259,84.221,3.42856707]
[1771581382831,5.6605232,84.259,84.221,14.11946707]
[1771581383331,5.6605232,84.259,84.221,3.42856707]
[1771581383733,5.6605232,84.259,84.21,13.74121784]
[1771581383734,5.6605232,84.249,84.21,10.6922]
[1771581384431,5.6605232,84.249,84.21,14.18694702]
[1771581386231,5.6605232,84.239,84.201,10.6934]
[1771581387133,11.75622545,84.278,84.188,3.30228131]
[1771581387134,3.04901784,84.22,84.188,3.30228131]
[1771581387335,3.04901784,84.22,84.18,255.42169718]
[1771581387336,5.6605232,84.219,84.18,255.42169718]
[1771581387931,8.70954104,84.21,84.18,255.42169718]
[1771581388131,5.6605232,84.209,84.18,255.42169718]
[1771581391832,5.6605232,84.219,84.181,3.31244283]
[1771581399048,5.6605232,84.219,84.165,10.698]
[1771581399246,5.78527518,84.209,84.165,10.698]
[1771581399646,5.78527518,84.209,84.165,14.30629724]
[1771581399846,5.78527518,84.209,84.168,10.6975]
[1771581400140,5.78527518,84.209,84.168,14.30505067]
[1771581400535,5.78527518,84.209,84.169,3.61343046]
[1771581401338,5.78527518,84.209,84.17,10.6973]
[1771581403852,5.78527518,84.209,84.17,14.31432538]
[1771581407253,5.78527518,84.209,84.171,3.63873054]
[1771581409553,5.78527518,84.208,84.16,3.04901784]
[1771581409857,5.78527518,84.199,84.158,14.30163642]
[1771581411752,5.78527518,84.199,84.159,3.59614513]
[1771581412355,5.78527518,84.199,84.161,10.6985]
[1771581415154,5.78527518,84.199,84.159,3.59614513]
[1771581422568,21.3748,84.25,84.134,30.47583209]
[1771581422569,5.78527518,84.219,84.171,3.62438314]
[1771581423771,5.78527518,84.217,84.171,3.62438314]
[1771581424769,5.85713776,84.215,84.171,3.62438314]
[1771581425767,8.9061556,84.21,84.171,3.62438314]
[1771581425966,5.85713776,84.209,84.171,3.62438314]
[1771581426669,5.85713776,84.2,84.171,3.62438314]
[1771581430568,5.85713776,84.2,84.161,3.64704759]
[1771581433969,5.85713776,84.2,84.162,10.6984]
[1771581434174,5.85713776,84.2,84.163,3.65424462]
[1771581437973,5.85713776,84.2,84.166,3.65757218]
[1771581438772,5.85713776,84.2,84.155,3.65914727]
[1771581439870,5.88318134,84.199,84.155,3.65914727]
[1771581441478,5.88318134,84.199,84.156,3.64243361]
[1771581443282,5.88318134,84.199,84.159,3.64118474]
[1771581445786,5.88318134,84.199,84.15,3.683948]
[1771581446782,5.88318134,84.199,84.153,3.68519858]
[1771581453086,5.88318134,84.199,84.155,3.63841091]
[1771581453986,5.88318134,84.199,84.157,3.63951683]
[1771581463894,5.88318134,84.199,84.169,3.70275019]
[1771581467796,5.88318134,84.199,84.17,3.76980172]
[1771581471294,6.282329,84.228,84.181,3.63631237]
[1771581471686,6.282329,84.219,84.181,3.63631237]
[1771581471891,6.282329,84.219,84.182,14.33325313]
[1771581473096,6.282329,84.219,84.173,3.71669023]
[1771581473498,6.282329,84.209,84.173,3.71669023]
[1771581476297,6.282329,84.209,84.174,14.3977517]
[1771581479203,6.282329,84.209,84.166,10.6978]
[1771581479606,6.282329,84.199,84.158,10.6988]
[1771581480502,6.282329,84.189,84.158,10.6988]
[1771581482399,6.282329,84.189,84.155,3.68071509]
[1771581482601,6.282329,84.179,84.144,18.50486834]
[1771581482806,6.282329,84.179,84.144,3.67789418]
[1771581488311,6.282329,84.179,84.146,3.61502885]
[1771581489006,5.92817107,84.191,84.151,3.6787865]
[1771581489213,8.97772373,84.2,84.16,3.04955266]
[1771581489412,8.97772373,84.2,84.161,3.6787865]
[1771581489899,5.92817107,84.2,84.161,3.6787865]
[1771581490710,5.92817107,84.2,84.162,3.68021215]
[1771581494710,8.97772373,84.2,84.162,3.68021215]
[1771581495012,5.92817107,84.199,84.162,3.68021215]
[1771581496611,5.92817107,84.199,84.151,3.34073781]
[1771581497110,14.72484159,84.234,84.151,3.34073781]
[1771581497111,5.92817107,84.189,84.156,10.6991]
[1771581498208,5.92817107,84.189,84.151,3.34073781]
[1771581499411,5.92817107,84.189,84.153,10.6996]
[1771581508623,5.92817107,84.179,84.14,13.38502326]
[1771581508824,5.92817107,84.179,84.141,2.68392326]
[1771581512121,5.92817107,84.179,84.143,13.23944426]
[1771581514226,5.92817107,84.179,84.144,2.45837351]
[1771581522418,5.92817107,84.179,84.135,285.13509713]
[1771581525132,5.92817107,84.179,84.136,1.96137903]
[1771581542941,5.2535566,84.204,84.151,1.4826233]
[1771581543139,5.2535566,84.199,84.161,1.4826233]
[1771581545940,5.10855131,84.197,84.161,1.4826233]
[1771581551141,5.10855131,84.197,84.16,3.04839908]
[1771581552843,5.10855131,84.197,84.152,1.36876861]
[1771581553444,5.0161858,84.195,84.152,1.36876861]
[1771581553845,5.0161858,84.189,84.152,1.36876861]
[1771581559248,5.0161858,84.185,84.14,1.16816979]
[1771581559453,5.0161858,84.179,84.14,1.16816979]
[1771581562957,5.0161858,84.169,84.129,1.08547424]